bitfinex/quotes_ETHUSD_20251217
["timestamp","ask_amount","ask_price","bid_price","bid_amount"]
[1765991424442,0.001,2852.9,2851.9,0.405504]
[1765991424641,0.001,2852.9,2852.1,0.405504]
[1765991424842,0.001,2852.9,2852.1,0.86988423]
[1765991425057,0.001,2852.9,2852.4,3.50581966]
[1765991425248,0.001,2852.9,2852.5,0.572]
[1765991425665,0.001,2852.9,2852.3,3.50590535]
[1765991425860,0.001,2852.9,2852.5,0.405504]
[1765991426242,0.001,2852.9,2851.9,3.50635237]
[1765991426445,0.001,2852.9,2852.1,0.405504]
[1765991426659,5.6229,2852.9,2851.1,0.46438023]
[1765991426972,0.001,2852.9,2852.3,3.50594138]
[1765991427148,3.3999,2852.9,2852.4,0.572]
[1765991427347,0.001,2852.9,2852.4,0.572]
[1765991428001,2.224,2853.4,2852.4,0.572]
[1765991428002,0.001,2854.1,2852.7,0.46438023]
[1765991428166,3.3999,2854.0,2852.8,0.03505328]
[1765991428364,3.3999,2854.0,2852.4,19.59550068]
[1765991428365,0.56349,2854.0,2852.4,3.50570773]
[1765991428564,2.223,2853.4,2852.4,3.50570773]
[1765991428802,2.223,2853.3,2852.3,3.50590316]
[1765991428970,3.3989,2852.6,2852.1,0.572]
[1765991429170,5.6219,2853.3,2852.2,7.01202951]
[1765991429463,2.223,2853.7,2852.3,0.405504]
[1765991429666,5.6219,2853.7,2852.3,0.405504]
[1765991429896,0.03606326,2854.0,2852.3,0.405504]
[1765991430195,0.03606326,2854.0,2852.4,0.572]
[1765991430196,3.3989,2853.3,2852.4,0.572]
[1765991430499,3.3989,2853.3,2852.5,0.572]
[1765991430500,3.3989,2853.2,2852.5,0.572]
[1765991430702,2.223,2853.1,2851.6,0.03506803]
[1765991430869,3.3989,2852.8,2851.9,3.50636707]
[1765991431196,3.3989,2852.4,2851.7,0.572]
[1765991431495,0.001,2852.9,2851.7,0.572]
[1765991431496,3.3989,2852.8,2851.7,0.572]
[1765991431704,3.3989,2852.8,2851.8,0.572]
[1765991431869,3.3989,2852.6,2851.8,0.572]
[1765991432069,5.6219,2852.5,2851.8,0.572]
[1765991432266,0.02463661,2852.1,2851.8,0.572]
[1765991432885,3.3989,2852.2,2851.8,0.572]
[1765991433090,0.02463661,2852.1,2851.8,0.572]
[1765991433697,0.02463661,2852.7,2851.8,0.572]
[1765991433912,5.64653661,2853.5,2851.9,0.90494857]
[1765991434201,5.64653661,2853.5,2852.1,0.405504]
[1765991434202,0.02463661,2853.3,2852.1,0.405504]
[1765991434506,5.64653661,2853.9,2852.2,0.03506065]
[1765991434865,2.24763661,2853.9,2852.1,0.405504]
[1765991435079,0.02463661,2853.2,2850.9,7.01532848]
[1765991435312,0.48901684,2853.2,2851.6,0.405504]
[1765991435598,0.02463661,2853.0,2851.8,0.405504]
[1765991435814,3.3989,2853.6,2852.0,0.405504]
[1765991436027,0.001,2854.0,2852.2,0.405504]
[1765991436213,0.46438023,2853.6,2852.3,0.60705942]
[1765991436418,0.46438023,2853.6,2852.3,0.572]
[1765991436617,3.3989,2853.7,2852.3,0.572]
[1765991436837,3.3989,2853.7,2852.4,0.405504]
[1765991437015,3.3989,2853.4,2852.5,0.572]
[1765991437214,0.02463661,2853.4,2852.5,7.58331852]
[1765991437532,2.223,2853.9,2852.6,0.86988423]
[1765991437825,0.001,2854.0,2852.6,0.86988423]
[1765991438200,0.001,2854.0,2852.6,0.90493996]
[1765991439411,0.001,2854.0,2852.8,0.86988423]
[1765991439836,0.001,2854.0,2852.8,1.44188423]
[1765991440517,3.4411,2853.4,2851.5,3.50692415]
[1765991440718,2.3311,2853.2,2852.2,3.50605978]
[1765991440945,0.02463661,2853.9,2852.0,3.50620587]
[1765991440946,3.4421,2852.9,2852.0,3.50620587]
[1765991441129,0.001,2852.9,2852.5,3.50565211]
[1765991441434,0.001,2852.9,2852.3,7.41734744]
[1765991442219,0.001,2852.9,2852.3,3.91140487]
[1765991442537,0.001,2852.9,2852.3,7.41734744]
[1765991443733,0.001,2852.9,2852.3,3.91140487]
[1765991443953,0.001,2852.9,2852.5,0.405504]
[1765991444356,0.001,2852.9,2852.6,0.572]
[1765991445558,0.001,2852.9,2852.7,7.41640594]
[1765991445869,0.001,2852.9,2852.7,7.01090194]
[1765991446030,0.001,2852.9,2852.8,0.86988423]
[1765991447532,0.001,2852.9,2852.8,4.37521232]
[1765991450277,0.001,2852.9,2852.8,4.94721232]
[1765991450684,0.001,2852.9,2852.8,3.96970832]
[1765991450882,0.001,2852.9,2852.8,4.54170832]
[1765991451100,0.001,2852.9,2852.8,0.46438023]
[1765991451253,0.001,2852.9,2852.8,4.07732809]
[1765991451617,0.001,2852.9,2852.8,4.94721232]
[1765991452055,0.001,2852.9,2852.8,14.0192135]
[1765991452258,0.001,2852.9,2852.8,4.94721232]
[1765991453168,1e-08,2854.2,2852.8,34.8095035]
[1765991453370,1e-08,2854.2,2853.7,0.86988423]
[1765991453572,1e-08,2854.2,2854.0,3.50385423]
[1765991453793,1e-08,2854.2,2854.1,10.36785854]
[1765991454052,1e-08,2854.2,2854.1,10.33282123]
[1765991454449,0.001,2855.2,2854.2,0.405504]
[1765991454648,0.001,2855.2,2854.4,0.405504]
[1765991454889,0.001,2855.2,2854.6,0.405504]
[1765991455695,0.001,2855.2,2854.8,0.86988423]
[1765991455861,0.001,2855.2,2854.9,0.572]
[1765991456256,0.001,2855.2,2855.0,0.44053026]
[1765991456460,0.001,2855.2,2855.0,0.405504]
[1765991456659,0.001,2855.2,2855.1,0.405504]
[1765991456860,0.001,2855.2,2855.1,0.977504]
[1765991457061,0.001,2855.2,2854.9,0.405504]
[1765991457498,0.001,2855.2,2855.0,0.572]
[1765991457878,0.001,2855.2,2854.4,0.46438023]
[1765991458089,3.4421,2855.2,2854.7,0.572]
[1765991458685,0.001,2854.2,2853.6,9.07200118]
[1765991458978,0.001,2855.2,2854.1,0.571]
[1765991459171,0.001,2855.2,2854.2,0.405504]
[1765991459398,2.3321,2855.7,2854.0,0.572]
[1765991459399,0.001,2855.4,2854.5,0.57]
[1765991459684,0.001,2855.7,2854.7,3.50299506]
[1765991459879,0.001,2856.3,2854.9,0.405504]
[1765991460084,2.3311,2856.2,2855.0,1.14]
[1765991460282,0.46438023,2856.0,2855.1,0.405504]
[1765991460481,0.001,2856.3,2855.2,0.568]
[1765991460700,0.001,2856.5,2855.5,0.972504]
[1765991461001,3.4411,2856.4,2854.8,0.46438023]
[1765991461302,0.001,2856.5,2854.8,0.46438023]
[1765991461303,3.4411,2855.7,2854.8,0.571]
[1765991461919,5.7722,2855.7,2854.8,0.571]
[1765991462086,0.02463661,2856.2,2854.9,0.405504]
[1765991462412,0.46438023,2856.1,2855.1,0.405504]
[1765991462616,3.4411,2856.2,2855.3,0.405504]
[1765991463273,0.001,2856.5,2855.3,0.405504]
[1765991463679,0.46538023,2856.5,2855.4,3.5021363]
[1765991463905,0.46438023,2856.4,2855.4,3.5021363]
[1765991464112,0.001,2856.5,2855.4,4.0691363]
[1765991464285,0.46438023,2856.4,2855.4,4.0691363]
[1765991464485,3.4421,2856.5,2855.0,0.03502626]
[1765991464674,3.4411,2856.3,2855.4,0.46438023]
[1765991465072,3.4411,2856.1,2854.4,0.567]
[1765991465317,3.4411,2855.8,2854.9,0.46438023]
[1765991465516,2.3311,2855.8,2854.4,0.567]
[1765991465718,5.7722,2855.7,2854.6,7.00623554]
[1765991465917,5.7722,2855.7,2854.7,0.46438023]
[1765991466412,0.46438023,2856.0,2854.8,0.972504]
[1765991466621,3.4411,2856.1,2854.8,0.405504]
[1765991466814,0.34521,2856.5,2855.3,0.567]
[1765991466815,0.001,2856.5,2855.3,0.567]
[1765991467021,0.001,2856.5,2855.6,0.405504]
[1765991467022,0.001,2855.8,2855.6,0.405504]
[1765991467187,4.0121,2857.1,2855.7,0.405504]
[1765991467393,3.4411,2856.8,2855.7,0.405504]
[1765991467614,3.4411,2856.8,2855.4,0.970504]
[1765991467819,3.4411,2856.1,2854.4,0.565]
[1765991467988,3.4411,2856.1,2854.5,0.571]
[1765991468185,2.3311,2855.8,2854.6,0.405504]
[1765991468415,4.01832,2855.7,2854.8,0.405504]
[1765991468624,2.3311,2855.4,2854.2,3.5035506]
[1765991468924,0.571,2855.8,2854.5,0.565]
[1765991468925,0.46438023,2855.7,2854.5,0.565]
[1765991469146,3.3259,2855.7,2854.6,0.976504]
[1765991469835,3.3259,2855.7,2854.8,0.405504]
[1765991470042,2.9385,2855.8,2854.9,0.565]
[1765991470043,0.571,2855.8,2854.9,0.565]
[1765991470251,0.46438023,2856.1,2854.0,3.50377189]
[1765991470252,0.571,2855.9,2854.0,3.50377189]
[1765991470538,0.571,2855.9,2854.2,0.565]
[1765991470539,4.37938023,2855.9,2854.2,0.565]
[1765991470711,2.2615,2855.8,2854.4,0.405504]
[1765991470912,3.344,2855.5,2854.4,0.46438023]
[1765991471213,3.344,2855.3,2854.5,0.571]
[1765991471412,3.344,2855.3,2854.5,4.07423597]
[1765991471624,3.344,2855.3,2854.6,0.571]
[1765991471835,2.2615,2855.4,2854.6,0.571]
[1765991472336,5.6055,2855.4,2854.6,0.571]
[1765991473041,3.344,2855.9,2854.9,0.405504]
[1765991473248,2.2615,2855.3,2853.6,3.50431845]
[1765991473543,2.2615,2855.3,2853.9,3.96835642]
[1765991473544,3.344,2855.0,2853.9,3.96835642]
[1765991473711,2.2615,2854.5,2852.9,0.565]
[1765991473910,2.2615,2854.5,2852.8,0.002]
[1765991473911,3.344,2854.4,2853.1,0.565]
[1765991474111,3.915,2854.9,2854.5,0.002]
[1765991474343,5.6055,2854.8,2854.5,0.002]
[1765991474511,3.915,2854.9,2854.5,0.002]
[1765991474709,3.344,2854.9,2854.5,0.002]
[1765991474907,3.344,2854.8,2854.0,0.571]
[1765991475126,3.344,2854.8,2853.6,0.405504]
[1765991475339,2.2615,2854.7,2853.8,0.405504]
[1765991475507,0.02463661,2855.1,2853.8,0.405504]
[1765991475711,0.48901684,2855.1,2853.9,0.565]
[1765991475941,0.48901684,2855.1,2854.0,7.448251]
[1765991475942,0.46438023,2855.1,2854.0,7.448251]
[1765991476142,0.571,2855.3,2854.2,0.970504]
[1765991476440,0.46438023,2855.5,2854.4,0.565]
[1765991476441,3.344,2855.5,2854.4,0.565]
[1765991476648,3.344,2855.5,2854.5,0.976504]
[1765991477934,0.571,2855.9,2854.6,0.46438023]
[1765991478252,3.344,2856.1,2855.0,0.565]
[1765991478453,3.344,2856.1,2855.1,0.976504]
[1765991479119,0.001,2856.5,2855.2,0.03502381]
[1765991479326,0.001,2856.5,2855.5,0.405504]
[1765991479531,0.001,2856.5,2855.5,0.970504]
[1765991480132,2.2615,2856.9,2855.7,0.86988423]
[1765991480133,3.344,2856.9,2855.7,0.86988423]
[1765991480354,0.001,2857.0,2855.9,0.405504]
[1765991480559,2.2625,2857.0,2855.9,0.405504]
[1765991480747,3.344,2856.9,2855.9,0.405504]
[1765991481944,2.2615,2856.8,2855.7,0.46438023]
[1765991482260,0.03606326,2857.0,2854.6,3.52768723]
[1765991482261,3.344,2856.5,2854.6,3.50307268]
[1765991482464,3.344,2856.0,2854.8,0.002]
[1765991482654,5.6055,2856.0,2854.9,3.50265571]
[1765991482849,2.2615,2856.0,2855.0,0.46438023]
[1765991483051,0.5240801,2856.4,2854.8,0.002]
[1765991483052,3.344,2855.8,2854.8,0.002]
[1765991483361,0.571,2856.2,2855.0,3.50254576]
[1765991483362,3.915,2856.2,2855.0,3.50254576]
[1765991483567,3.915,2856.2,2855.0,4.37245034]
[1765991483727,2.2615,2856.1,2855.0,0.46438023]
[1765991483932,3.344,2856.0,2854.8,0.566]
[1765991484163,0.46438023,2856.3,2855.1,0.405504]
[1765991484347,0.571,2856.4,2855.3,0.405504]
[1765991484550,0.571,2856.4,2854.2,0.564]
[1765991484551,0.02463661,2856.2,2854.2,0.564]
[1765991484847,5.6055,2856.0,2854.8,7.47209357]
[1765991485256,2.29656326,2855.9,2854.8,0.002]
[1765991485460,3.344,2855.7,2854.8,0.002]
[1765991485760,3.80838023,2856.8,2855.0,0.564]
[1765991485964,3.80838023,2856.8,2855.5,0.405504]
[1765991486132,3.344,2856.8,2855.7,0.405504]
[1765991486331,0.572,2856.9,2855.9,0.969504]
[1765991486532,0.001,2856.9,2855.9,0.405504]
[1765991486734,0.001,2856.9,2856.1,0.405504]
[1765991487033,0.001,2856.9,2856.2,0.571]
[1765991487235,0.49001684,2857.3,2856.4,0.564]
[1765991487236,0.001,2857.3,2856.4,0.564]
[1765991487537,2.2625,2857.3,2856.3,0.405504]
[1765991487840,0.001,2857.3,2856.3,0.405504]
[1765991488069,0.001,2857.3,2856.4,3.50091023]
[1765991488234,0.001,2857.3,2856.0,3.50138142]
[1765991488235,3.345,2857.3,2856.0,3.50138142]
[1765991488439,3.344,2857.1,2856.2,0.571]
[1765991488837,3.344,2857.1,2856.0,3.50134034]
[1765991488838,3.344,2856.9,2856.0,0.571]
[1765991489037,3.344,2856.8,2855.7,0.976504]
[1765991489244,3.344,2856.8,2855.9,3.50149598]
[1765991489462,3.344,2856.8,2855.9,3.50147562]
[1765991489668,3.344,2856.8,2855.7,1.03538023]
[1765991489878,0.46538023,2857.3,2856.3,0.405504]
[1765991490046,0.001,2857.3,2856.3,7.97850393]
[1765991490246,0.001,2857.3,2856.4,0.564]
[1765991490447,0.001,2857.3,2856.5,0.405504]
[1765991490967,0.001,2857.6,2856.5,0.563]
[1765991491270,0.001,2857.6,2856.4,0.86988423]
[1765991491571,0.001,2857.3,2856.6,0.563]
[1765991491776,0.001,2857.3,2856.7,0.976504]
[1765991491944,0.001,2858.0,2856.8,0.561]
[1765991492273,0.001,2858.0,2857.2,0.405504]
[1765991492460,3.105811,2857.9,2857.3,0.571]
[1765991492667,0.001,2858.0,2857.3,1.131]
[1765991492841,2.29705,2857.9,2857.3,0.571]
[1765991493043,2.29705,2857.9,2856.8,3.90590088]
[1765991493369,2.29705,2857.9,2857.0,0.405504]
[1765991493571,3.344,2857.8,2857.0,0.405504]
[1765991493867,3.344,2857.8,2856.7,0.405504]
[1765991494069,3.344,2857.7,2856.7,0.976504]
[1765991494272,2.19705,2857.6,2856.0,0.035014]
[1765991494473,2.2615,2857.1,2856.1,3.50121199]
[1765991494671,2.19005,2856.9,2856.1,3.50121199]
[1765991494875,2.19005,2856.9,2855.7,0.56]
[1765991495043,3.344,2857.0,2855.8,0.571]
[1765991495369,3.344,2856.7,2855.8,0.571]
[1765991495570,0.46438023,2857.2,2856.0,0.405504]
[1765991495745,5.555,2857.1,2856.2,0.405504]
[1765991495945,6.49955,2857.0,2856.1,0.405504]
[1765991496146,22.247634,2856.8,2856.0,0.571]
[1765991496346,3.344,2856.9,2856.0,0.571]
[1765991496647,0.46438023,2857.2,2856.0,0.405504]
[1765991496648,9.103807,2857.0,2856.0,0.405504]
[1765991496846,4.839299,2857.1,2856.0,4.07236354]
[1765991497151,3.344,2857.7,2856.3,0.56]
[1765991497349,2.2615,2857.4,2856.1,0.03501277]
[1765991497550,2.2615,2857.4,2856.0,3.50138401]
[1765991497551,0.46438023,2857.2,2856.0,7.56278457]
[1765991497862,26.179916,2857.2,2856.1,2.04408962]
[1765991498065,29.523916,2857.2,2856.2,0.405504]
[1765991498254,27.537714,2857.0,2856.2,0.405504]
[1765991498452,18.183091,2856.9,2855.8,0.46438023]
[1765991498779,10.032401,2856.8,2856.1,0.571]
[1765991499970,10.032401,2856.8,2856.0,1.03538023]
[1765991500173,10.032401,2856.8,2856.0,4.53669266]
[1765991500370,10.032401,2856.8,2856.1,0.56]
[1765991500577,3.073092,2856.8,2856.0,8.03809322]
[1765991500746,2.543734,2856.8,2856.0,4.53669266]
[1765991501143,2.543734,2856.8,2856.0,4.07238151]
[1765991501370,2.543734,2856.8,2856.0,0.571]
[1765991501769,2.543734,2856.8,2856.0,4.07236987]
[1765991502240,2.543734,2856.8,2856.0,0.571]
[1765991502445,2.543734,2856.8,2856.0,4.07239671]
[1765991502858,0.001,2856.9,2856.0,4.07239671]
[1765991503077,16.978143,2856.8,2856.0,0.571]
[1765991503687,16.978143,2856.8,2855.8,0.002]
[1765991503967,12.213185,2856.8,2856.0,0.571]
[1765991504183,6.525158,2856.8,2856.0,0.571]
[1765991504369,3.2848,2856.8,2855.8,0.87188423]
[1765991504548,7.71906,2856.7,2856.0,0.405504]
[1765991504750,7.71906,2856.7,2855.8,0.573]
[1765991504960,5.4341,2856.6,2855.8,0.573]
[1765991506448,3.229668,2856.5,2855.8,0.573]
[1765991506654,5.4341,2856.5,2855.8,0.573]
[1765991507494,5.4341,2856.5,2855.9,0.002]
[1765991507785,5.952321,2856.4,2855.9,0.002]
[1765991508082,13.071844,2856.3,2855.9,0.002]
[1765991508388,16.854616,2856.4,2855.8,0.002]
[1765991508590,10.4112,2856.1,2855.1,1.03538023]
[1765991508760,10.289228,2856.1,2855.1,1.03538023]
[1765991508949,0.001,2856.9,2855.2,0.969504]
[1765991509162,20.120814,2856.4,2855.5,0.405504]
[1765991509362,2.1493,2856.2,2854.9,3.50273204]
[1765991509588,26.606333,2855.8,2854.8,0.002]
[1765991509771,3.2848,2855.9,2855.1,3.50248524]
[1765991510091,7.982601,2855.8,2855.1,0.46438023]
[1765991510267,7.982601,2855.8,2854.9,0.571]
[1765991510471,7.982601,2855.8,2854.9,1.03538023]
[1765991510671,7.982601,2855.8,2855.0,0.46438023]
[1765991511083,7.492206,2855.8,2855.0,0.46438023]
[1765991511889,3.2848,2855.9,2855.0,0.46438023]
[1765991511890,0.571,2856.1,2855.1,0.969504]
[1765991512112,3.74918023,2856.7,2855.2,0.564]
[1765991512263,4.51374802,2856.7,2855.7,0.405504]
[1765991512468,0.46438023,2856.6,2855.7,1.540504]
[1765991513005,1.03538023,2856.8,2855.7,0.976504]
[1765991513160,2.1503,2856.9,2855.9,0.405504]
[1765991513367,7.699996,2856.8,2855.9,0.405504]
[1765991513562,0.001,2856.9,2856.0,0.564]
[1765991513781,10.242988,2857.2,2855.8,0.405504]
[1765991513992,0.46438023,2857.1,2856.1,0.563]
[1765991514192,0.46438023,2857.1,2856.2,0.57]
[1765991514496,0.46438023,2857.1,2856.2,4.07107988]
[1765991514700,2.1493,2857.3,2856.3,0.405504]
[1765991514701,13.543286,2857.2,2856.3,0.405504]
[1765991514998,10.050814,2857.1,2856.3,0.405504]
[1765991515207,3.2848,2857.3,2856.3,0.405504]
[1765991515410,2.1493,2857.6,2856.3,0.968504]
[1765991515594,2.238726,2857.5,2856.4,0.563]
[1765991515767,0.001,2857.1,2856.4,0.563]
[1765991516463,0.46438023,2857.5,2856.6,0.562]
[1765991516664,6.049092,2857.5,2856.6,0.562]
[1765991516968,3.2858,2858.1,2857.1,0.405504]
[1765991517167,3.2858,2858.1,2857.2,0.57]
[1765991517369,0.001,2858.1,2857.3,0.405504]
[1765991517696,0.001,2858.1,2857.3,0.966504]
[1765991517862,5.4351,2858.1,2856.7,0.561]
[1765991518067,3.2848,2858.0,2856.9,0.561]
[1765991518303,3.2848,2858.0,2857.0,0.405504]
[1765991518500,7.867321,2857.9,2857.1,0.46438023]
[1765991518697,0.001,2858.1,2857.2,0.405504]
[1765991518897,0.001,2858.1,2857.4,0.405504]
[1765991519597,0.001,2858.1,2857.4,0.966504]
[1765991520604,0.001,2858.3,2857.7,0.561]
[1765991520898,0.001,2858.3,2857.8,1.13]
[1765991521105,3.2858,2858.8,2858.0,0.558]
[1765991521106,0.001,2858.8,2858.0,0.558]
[1765991521302,9.760176,2859.2,2858.1,0.405504]
[1765991521502,0.57,2859.5,2858.1,0.405504]
[1765991521503,0.57,2859.5,2858.3,0.405504]
[1765991521718,0.57,2859.5,2858.3,1.532504]
[1765991521719,3.8548,2859.5,2858.3,1.532504]
[1765991521889,0.57,2859.5,2858.3,0.975504]
[1765991522096,0.57,2859.5,2858.6,0.405504]
[1765991522405,0.57,2859.5,2858.3,0.57]
[1765991522406,2.1493,2860.1,2858.8,0.405504]
[1765991522606,14.651765,2859.9,2858.9,0.572]
[1765991522808,9.755389,2859.7,2858.9,0.572]
[1765991522990,10.874227,2859.5,2858.6,0.405504]
[1765991523194,3.6701901,2860.0,2858.6,0.557]
[1765991523390,0.572,2860.2,2858.9,0.405504]
[1765991523592,17.89638,2861.3,2859.2,0.557]
[1765991523840,3.2848,2860.9,2859.0,0.03497726]
[1765991524121,2.72618126,2861.2,2858.8,0.557]
[1765991524122,16.02595,2859.9,2858.8,0.557]
[1765991524436,0.46438023,2860.2,2859.1,0.557]
[1765991524593,2.1493,2860.1,2859.0,0.573]
[1765991524800,2.1493,2860.1,2858.5,0.556]
[1765991524801,2.1493,2859.8,2858.5,0.556]
[1765991525118,2.1493,2859.8,2857.7,3.49920853]
[1765991525119,2.1493,2859.2,2857.7,3.49920853]
[1765991525306,8.352806,2858.9,2858.0,0.46438023]
[1765991525491,0.46438023,2859.2,2858.0,0.556]
[1765991525692,5.4341,2859.1,2858.1,0.405504]
[1765991526126,0.573,2859.7,2858.1,0.405504]
[1765991526312,0.46438023,2859.2,2858.1,0.405504]
[1765991526516,0.46438023,2859.2,2858.3,0.405504]
[1765991526694,0.46438023,2859.5,2858.5,0.556]
[1765991526893,2.61368023,2859.3,2858.0,0.556]
[1765991527223,5.4341,2859.5,2858.1,6.99759184]
[1765991527423,0.573,2859.7,2858.3,0.556]
[1765991527627,2.1972,2859.5,2858.5,0.961504]
[1765991527833,0.46438023,2859.6,2858.7,0.405504]
[1765991528029,0.573,2860.1,2858.7,0.405504]
[1765991528030,0.46438023,2859.9,2858.7,0.405504]
[1765991528208,0.001,2860.6,2859.0,0.961504]
[1765991528209,3.2848,2860.3,2859.0,0.961504]
[1765991528405,7.411593,2860.0,2859.2,0.405504]
[1765991528726,3.2848,2860.0,2859.2,0.573]
[1765991528918,11.909281,2859.9,2859.1,0.405504]
[1765991529129,3.1814,2859.8,2859.1,0.405504]
[1765991529335,3.8395897,2860.2,2859.1,0.405504]
[1765991529536,2.12297,2860.1,2859.1,1.02038023]
[1765991529731,3.1814,2860.7,2859.3,0.556]
[1765991529911,4.576309,2860.5,2859.6,0.405504]
[1765991530113,3.1814,2860.7,2859.7,0.573]
[1765991530309,2.584141,2860.5,2859.7,0.573]
[1765991530509,2.584141,2860.5,2859.1,0.556]
[1765991530510,3.4117,2860.4,2859.1,0.556]
[1765991530739,2.8700541,2860.5,2859.2,0.978504]
[1765991530740,5.7051,2860.2,2859.2,0.978504]
[1765991530945,8.25303,2860.5,2859.2,1.44288423]
[1765991530946,3.4117,2860.0,2859.2,1.44288423]
[1765991531125,8.621024,2859.9,2858.8,0.556]
[1765991531314,0.573,2860.5,2858.0,0.02663661]
[1765991531315,22.395483,2859.8,2858.0,0.02663661]
[1765991531518,22.845356,2859.5,2858.5,3.49833828]
[1765991531712,2.27461156,2859.7,2858.6,0.573]
[1765991531713,2.2395483,2859.7,2858.6,0.573]
[1765991531933,0.001,2859.8,2858.8,0.556]
[1765991532134,0.001,2859.8,2858.9,0.405504]
[1765991532526,2.556,2859.7,2859.0,3.49772647]
[1765991532724,2.473,2859.7,2858.9,0.86988423]
[1765991533034,0.001,2859.8,2859.1,0.405504]
[1765991533810,4.154224,2859.4,2858.8,3.49790176]
[1765991534142,4.154224,2859.4,2858.8,3.49790669]
[1765991534458,2.19705,2859.4,2858.9,3.49783241]
[1765991534735,3.4117,2859.5,2858.6,6.9964318]
[1765991534908,0.001,2859.8,2858.8,0.556]
[1765991535536,0.001,2859.8,2858.5,3.49833699]
[1765991535537,12.829595,2859.7,2858.5,3.49833699]
[1765991535727,11.797663,2859.3,2858.4,0.572]
[1765991535927,3.4117,2859.3,2858.5,3.49833374]
[1765991536107,3.4117,2859.2,2858.3,0.46438023]
[1765991536308,3.4117,2859.2,2858.5,4.0703337]
[1765991536539,0.001,2859.8,2858.6,0.59098215]
[1765991536540,3.4127,2859.8,2858.6,0.59098215]
[1765991536717,4.414862,2859.7,2858.6,0.556]
[1765991536922,3.4127,2859.8,2858.6,0.46438023]
[1765991537120,3.4127,2859.8,2858.7,0.556]
[1765991537442,7.550971,2859.7,2858.7,0.556]
[1765991537656,2.2944,2859.8,2858.5,0.46438023]
[1765991537657,20.28162526,2859.6,2858.5,0.46438023]
[1765991537818,3.4117,2859.3,2858.6,0.572]
[1765991538158,0.03506326,2859.7,2858.0,0.002]
[1765991538448,19.848847,2858.6,2858.0,0.002]
[1765991538651,2.19705,2858.5,2858.0,0.002]
[1765991539150,2.253719,2859.0,2858.0,0.002]
[1765991539355,3.4117,2859.0,2858.0,0.002]
[1765991539555,0.46438023,2858.7,2858.0,0.002]
[1765991539713,2.871276,2858.6,2858.0,0.002]
[1765991540537,0.46438023,2858.7,2858.0,0.002]
[1765991540741,7.879775,2858.6,2858.0,0.002]
[1765991540944,2.19715,2858.7,2858.0,0.002]
[1765991541327,5.2438888,2860.3,2858.1,1.128]
[1765991541666,27.23678,2859.4,2858.2,0.556]
[1765991541811,0.46438023,2859.6,2858.1,0.572]
[1765991541812,3.32455,2859.0,2858.1,0.572]
[1765991542015,15.779823,2858.9,2858.0,0.002]
[1765991542214,11.062492,2858.9,2858.1,0.572]
[1765991542520,11.062492,2858.9,2858.2,6.99741094]
[1765991542714,0.46438023,2859.0,2858.2,3.49870547]
[1765991542715,2.19705,2859.0,2858.2,3.49870547]
[1765991542910,2.2934,2858.9,2858.1,0.572]
[1765991543139,5.7051,2858.6,2858.1,0.572]
[1765991543316,3.4117,2858.5,2858.0,0.002]
[1765991543521,5.7051,2858.5,2858.0,0.574]
[1765991544053,5.7051,2858.5,2858.0,0.002]
[1765991544272,2.19705,2858.2,2857.7,3.49925477]
[1765991544433,2.2934,2858.5,2857.8,3.49915772]
[1765991544640,16.919769,2858.5,2857.7,3.49931763]
[1765991544969,15.862127,2858.5,2857.7,6.99863526]
[1765991545334,15.862127,2858.5,2857.7,3.49931763]
[1765991545546,9.579446,2858.5,2857.7,6.99863526]
[1765991545832,9.579446,2858.5,2856.8,0.002]
[1765991545833,3.4117,2858.3,2856.8,0.002]
[1765991546032,3.4117,2858.0,2857.3,3.4997482]
[1765991546433,5.7051,2858.0,2857.1,3.49995537]
[1765991546633,5.7051,2858.0,2857.2,0.34999554]
[1765991546831,5.7051,2858.0,2856.9,4.62920626]
[1765991546832,3.4117,2857.8,2856.9,0.571]
[1765991547159,0.571,2858.2,2856.9,0.571]
[1765991547160,5.32343823,2858.1,2857.2,3.49990075]
[1765991547362,13.00629,2857.8,2856.9,0.571]
[1765991547548,6.2761,2858.2,2857.2,3.49992933]
[1765991547904,7.880453,2858.0,2857.1,3.5000086]
[1765991548045,9.403332,2857.9,2857.2,3.49992564]
[1765991548364,7.852375,2857.9,2857.2,3.49992564]
[1765991548561,7.852375,2857.9,2857.2,3.49992234]
[1765991548762,7.852375,2857.8,2857.1,0.002]
[1765991548964,2.2934,2857.4,2857.1,0.002]
[1765991549163,3.4117,2857.2,2857.1,0.002]
[1765991549367,7.008329,2857.6,2857.1,0.002]
[1765991549543,0.46438023,2857.8,2857.1,0.002]
[1765991549743,6.16948023,2857.8,2857.1,0.002]
[1765991550043,3.4117,2857.7,2857.1,0.03700052]
[1765991550247,5.7051,2857.5,2857.1,0.002]
[1765991550743,2.2934,2857.8,2857.1,0.002]
[1765991551068,13.943012,2856.8,2856.0,0.002]
[1765991551269,0.46438023,2857.4,2856.0,0.002]
[1765991551270,2.2934,2857.1,2856.5,3.50071433]
[1765991551432,0.46438023,2857.4,2856.4,4.06089967]
[1765991551770,2.2934,2858.1,2856.6,0.56]
[1765991552064,2.19705,2857.7,2856.8,7.56083288]